Cogmind - Beta 14 @@@ ROGUE MODE // 2024.08.08 @ 08:57:42 Player: Minty Result: Destroyed by Y-45 Defender with Heavy Assault Rifle Performance ------------- Evolutions (2) 1000 Regions Visited (4) 800 Robots Destroyed (46) 230 Value Destroyed (1196) 1196 Prototype IDs (12) 240 Alien Tech Used (0) 0 Bonus (0) 0 TOTAL SCORE: 3466 Bonus ------- None Cogmind --------- Core Integrity 0/550 Matter 165/300 Energy 100/100 System Corruption 0% Temperature Cool (9) Movement Core (150) Ox2 Location -8/Materials Parts ------- > --- POWER (1) -------- (None) > --- PROPULSION (3) --- (None) > --- UTILITY (5) ------ Small Storage Unit Trap Scanner Improved Targeting Computer Improved Targeting Computer > --- WEAPON (2) ------- (None) > --- INVENTORY (8) ---- Transmission Jammer Hacking Suite Lightning Gun Improved Assault Rifle Improved Assault Rifle Improved Assault Rifle Heavy Rocket Launcher Maul Peak State ------------ > --- POWER ------------ Deuterium Engine > --- PROPULSION ------- Wheel Wheel Armored Wheel > --- UTILITY ---------- Small Storage Unit Trap Scanner Improved Targeting Computer Improved Targeting Computer Medium Armor Plating > --- WEAPON ----------- Improved Assault Rifle Improved Assault Rifle > --- INVENTORY -------- Light Nuclear Core Improved Heat Sink Transmission Jammer Improved Assault Rifle Improved Assault Rifle Maul Blade Trap Blade Trap [Rating: 25] Favorites ----------- Power Ion Engine Engine Ion Engine Power Core Light Nuclear Core Propulsion Wheel Leg Aluminum Leg Wheel Wheel Utility Small Storage Unit Device Trap Scanner Storage Small Storage Unit Processor Improved Targeting Computer Protection Weapon Shielding Weapon Improved Assault Rifle Energy Gun EM Pulse Gun Ballistic Gun Improved Assault Rifle Launcher Heavy Rocket Launcher Impact Weapon Maul Build | -11 -10 -9 -9 -8 ------- Run | Yrd Mat Mat Min Mat Slots Evolved 4 | . . 2 . 2 Power . | . . . . . Propulsion 1 | . . . . 1 Utility 3 | . . 2 . 1 Weapon . | . . . . . Parts Attached 36 | . 3 11 3 19 Power 3 | . 1 . . 2 Engine 2 | . 1 . . 1 Core 1 | . . . . 1 Reactor . | . . . . . Propulsion 8 | . . 3 . 5 Treads . | . . . . . Leg . | . . . . . Wheel 8 | . . 3 . 5 Hover . | . . . . . Flight . | . . . . . Utility 11 | . 1 4 1 5 Device 3 | . . . 1 2 Storage . | . . . . . Processor 3 | . . 2 . 1 Hackware . | . . . . . Protection 5 | . 1 2 . 2 Artifact . | . . . . . Weapon 14 | . 1 4 2 7 Energy Gun . | . . . . . Energy Cannon . | . . . . . Ballistic Gun 10 | . 1 3 2 4 Ballistic Cannon . | . . . . . Launcher 3 | . . . . 3 Special Weapon . | . . . . . Impact Weapon 1 | . . 1 . . Slashing Weapon . | . . . . . Piercing Weapon . | . . . . . Special Melee Weapon . | . . . . . Unidentified Prototypes 1 | . . 1 . . Corrupted Parts 1 | . 1 . . . System Corruption 2 | . 2 . . . Parts Lost 13 | . . . 1 12 Power 1 | . . . . 1 Propulsion 4 | . . . . 4 Utility 5 | . . . 1 4 Weapon 3 | . . . . 3 Highest Loss Streak 9 | . . . 1 9 To Critical Strikes . | . . . . . Average Slot Usage (%) 94 | . 91 96 98 93 Engine 9 | . 14 11 11 6 Leg 7 | . 28 8 . . Wheel 16 | . . 13 22 25 Device 3 | . . . . 9 Storage 10 | . 14 11 11 9 Processor 10 | . . 9 11 15 Protection 13 | . 5 20 19 7 Energy Gun 5 | . 27 1 . . Ballistic Gun 15 | . . 19 22 17 Peak Build Rating 25 | . 7 16 17 25 Average Rating 15 | . 6 14 15 21 On Entrance 10 | 6 6 7 16 17 Naked Turns . | . . . . . Heaviest Build 29 | 12 15 20 20 29 Greatest Support 36 | 20 20 26 20 36 Greatest Overweight (x) 3 | . . 1 . 3 Average Overweight (x) . | . . . . . Largest Inventory Capacity 8 | . 8 8 8 8 Average Capacity 8 | . 8 8 8 8 Most Carried 8 | . 8 8 8 8 Average Carried 7 | . 6 7 7 7 Final Capacity 8 | 8 8 8 8 8 Final Carried 8 | 6 8 8 8 8 Class Distribution -------------------- 100% | Mutant Dominant Class ---------------- Mutant | -10/Materials Mutant | -9/Materials Mutant | -9/Mines Mutant | -8/Materials Resources | -11 -10 -9 -9 -8 ----------- Run | Yrd Mat Mat Min Mat Matter Collected 987 | 200 20 207 126 434 Remotely . | . . . . . Salvage Created 1587 | . 99 359 208 921 Parts 101 | . 11 29 11 50 Haulers Intercepted 3 | . . 1 . 2 Recyclers Shooed 3 | . 1 . . 2 Parts Field Recycled . | . . . . . Retrieved Matter . | . . . . . Parts Self-Destructed . | . . . . . Prevented . | . . . . . Kills | -11 -10 -9 -9 -8 ------- Run | Yrd Mat Mat Min Mat Combat Hostiles Destroyed 26 | . 3 4 3 16 Guns 16 | . 3 4 3 6 AOE 10 | . . . . 10 Classes Destroyed 12 | . 3 4 2 3 Worker 2 | . . 2 . . Builder 5 | . 1 1 . 3 Tunneler 1 | . . . 1 . Hauler 3 | . . 1 . 2 Recycler 4 | . . . 1 3 Mechanic 1 | . . . . 1 Operator 2 | . . 1 . 1 Watcher 2 | . . . . 2 Swarmer 5 | . 2 . . 3 Grunt 14 | . 1 1 3 9 Sentry 6 | . . 3 . 3 Hunter 1 | . . . . 1 Best Kill Streak 13 | . 2 4 4 13 Combat Bots Only 10 | . 2 2 3 10 Max Kills in Single Turn 3 | . 1 1 1 3 Gunslinging . | . . . . . Exploded 2 | . . . . 2 Melee . | . . . . . Uniques/NPCs Destroyed . | . . . . . Combat | -11 -10 -9 -9 -8 -------- Run | Yrd Mat Mat Min Mat Hostile Shots Fired 173 | . 17 18 21 117 Missed 36 | . 6 3 6 21 Damage Taken 2205 | . 99 204 173 1729 Core 682 | . 15 69 42 556 Absorbed by Shields . | . . . . . Redirected to Shielding 52 | . 6 14 6 26 Core Remaining (%) 88 | 100 94 . 72 . Volleys Fired 105 | . 10 25 15 55 Largest 2 | . 2 2 2 2 Hottest 80 | . 80 60 46 62 Shots Fired 206 | . 19 50 30 107 Gun 197 | . 19 50 30 98 Cannon . | . . . . . Launcher 9 | . . . . 9 Special . | . . . . . Kinetic 169 | . . 41 30 98 Thermal . | . . . . . Explosive 9 | . . . . 9 Electromagnetic 28 | . 19 9 . . Robot Hit Streak 17 | . 4 16 13 17 Robot Miss Streak 3 | . 1 3 1 2 Penetration Max . | . . . . . Secondary Targets 2 | . 1 . 1 . Max Gunslinging Chain 1 | . 1 . 1 . Shots Hit Robots 144 | . 11 28 25 80 Core Hits 79 | . 4 14 9 52 Critical Kills 1 | . . . . 1 Critical Parts Destroyed 1 | . . . . 1 Critical Strikes 2 | . . . . 2 Destroy 2 | . . . . 2 Melee Attacks 6 | . . 6 . . Impact 6 | . . 6 . . Slashing . | . . . . . Piercing . | . . . . . Sneak Attacks . | . . . . . Combat Hostiles . | . . . . . Follow-up Attacks . | . . . . . Damage Inflicted 3213 | . 148 431 360 2274 Guns 1994 | . 148 423 360 1063 Cannons . | . . . . . Explosions 1211 | . . . . 1211 Melee . | . . . . . Ramming 8 | . . 8 . . Kinetic 1784 | . . 361 360 1063 Thermal . | . . . . . Explosive 1211 | . . . . 1211 Electromagnetic 210 | . 148 62 . . Impact . | . . . . . Slashing . | . . . . . Piercing . | . . . . . Highest Corruption 3 | . 3 . . . Average Corruption 1 | . 1 . . . Corruption Purged . | . . . . . Corruption Blocked . | . . . . . Effects 1 | . 1 . . . Weapon Failures 1 | . 1 . . . Overload Shots . | . . . . . Overflow Damage 41 | . . . . 41 Projectiles . | . . . . . Explosions 41 | . . . . 41 Melee . | . . . . . Knockbacks . | . . . . . Impact . | . . . . . Kinetic . | . . . . . Secondary . | . . . . . Self-Inflicted Damage 115 | . . . . 115 Shots 4 | . . . . 4 Rammed . | . . . . . Targets Rammed 2 | . . 2 . . Kicked 2 | . . 2 . . Crushed . | . . . . . Highest Temperature 160 | . 90 14 16 160 Average Temperature 37 | . 40 5 6 53 Received Heat Transfer 849 | . 24 72 96 657 Siege Activations . | . . . . . Robots Corrupted . | . . . . . Combat Hostiles . | . . . . . Parts Fried 1 | . 1 . . . Impact Corruptions . | . . . . . Robots Melted . | . . . . . Combat Hostiles . | . . . . . Parts Melted . | . . . . . Heat Transferred . | . . . . . Parts Sabotaged . | . . . . . Parts Stolen . | . . . . . Parts Stripped . | . . . . . Power Chain Reactions . | . . . . . Alert | -11 -10 -9 -9 -8 ------- Run | Yrd Mat Mat Min Mat Peak Influence 416 | . 133 257 103 416 Initial 55 | . . 55 33 39 Average 115 | . 50 130 49 161 Maximum Alert Level 2 | . . 1 . 2 Low Security (%) 84 | . 100 90 100 65 Level 1 14 | . . 9 . 33 Level 2 . | . . . . 1 Level 3 . | . . . . . Level 4 . | . . . . . Level 5 . | . . . . . High Security . | . . . . . Max Security . | . . . . . Squads Dispatched 6 | . 1 1 . 4 Investigation 3 | . 1 1 . 1 Extermination . | . . . . . Reinforcement 3 | . . . . 3 Assault . | . . . . . Garrison . | . . . . . Intercept . | . . . . . Searches Triggered . | . . . . . Construction Impeded 1 | . . . . 1 Haulers Reinforced . | . . . . . Active Scanning Responses . | . . . . . Cargo Convoy Interrupts . | . . . . . Stealth | -11 -10 -9 -9 -8 --------- Run | Yrd Mat Mat Min Mat Distress Signals 2 | . . . . 2 Communications Jammed . | . . . . . Distress Signals . | . . . . . Times Spotted 44 | . 6 7 3 28 Peak Tracking Total 13 | . 3 2 3 13 Tactical Retreats . | . . . . . Traps | -11 -10 -9 -9 -8 ------- Run | Yrd Mat Mat Min Mat Traps Triggered 1 | . 1 . . . Indirectly . | . . . . . Trap Hack Attempts . | . . . . . Triggered . | . . . . . Disarmed . | . . . . . Reprogrammed . | . . . . . Reused 1 | . . . . 1 Traps Extracted . | . . . . . Installed 3 | . . . 1 2 Triggered 1 | . . . . 1 Most Traps Carried 2 | . . . 2 2 Machines | -11 -10 -9 -9 -8 ---------- Run | Yrd Mat Mat Min Mat Machines Disabled 5 | . . 2 . 3 Max in Single Turn 1 | . . 1 . 1 Machines Repaired . | . . . . . Machines Dismantled . | . . . . . Machines Sabotaged . | . . . . . Overloaded Fab Kills . | . . . . . Hacking | -11 -10 -9 -9 -8 --------- Run | Yrd Mat Mat Min Mat Machines Accessed 12 | . 4 5 . 3 Terminals 9 | . 3 4 . 2 Fabricators . | . . . . . Repair Stations 1 | . 1 . . . Recycling Units 2 | . . 1 . 1 Scanalyzers . | . . . . . Garrison Access . | . . . . . Total Hacks 46 | . 13 20 . 13 Successful 22 | . 7 10 . 5 Failed 24 | . 6 10 . 8 Catastrophic 2 | . . . . 2 Database Lockouts . | . . . . . Manual 22 | . 2 11 . 9 Terminals 35 | . 10 15 . 10 Fabricators . | . . . . . Repair Stations 3 | . 3 . . . Recycling Units 8 | . . 5 . 3 Scanalyzers . | . . . . . Garrison Access . | . . . . . Terminal Hacks 10 | . 4 5 . 1 Prototype ID Bank 6 | . 2 3 . 1 Branch Access Points 1 | . . 1 . . Alert Level 1 | . 1 . . . Locate Traps 1 | . 1 . . . Zone Layout 1 | . . 1 . . Fabricator Hacks . | . . . . . Repair Station Hacks 1 | . 1 . . . Scan Component 1 | . 1 . . . Recycling Unit Hacks 3 | . . 1 . 2 Report Inventory 2 | . . 1 . 1 Retrieve Components 1 | . . . . 1 Scanalyzer . | . . . . . Garrison Access Hacks . | . . . . . Unauthorized Hacks 8 | . 2 4 . 2 Terminals 8 | . 2 4 . 2 Track 2 | . 1 1 . . Assimilate 2 | . . 1 . 1 Botnet 4 | . 1 2 . 1 Fabricators . | . . . . . Repair Stations . | . . . . . Recycling Units . | . . . . . Scanalyzers . | . . . . . Garrison Access . | . . . . . Data Cores Recovered . | . . . . . Used . | . . . . . Hacking Detections 12 | . 4 5 . 3 Full Trace Events 6 | . 2 3 . 1 Feedback Events . | . . . . . Feedback Blocked . | . . . . . Robot Schematics Acquired . | . . . . . Robots Built . | . . . . . Authchips . | . . . . . Time . | . . . . . Total Robot Build Rating . | . . . . . Part Schematics Acquired . | . . . . . Parts Built . | . . . . . Authchips . | . . . . . Time . | . . . . . Total Part Build Rating . | . . . . . Parts Repaired . | . . . . . Time . | . . . . . Parts Recycled . | . . . . . Recycled Matter . | . . . . . Retrieved Matter . | . . . . . Retrieved Components 7 | . . . . 7 Parts Scanalyzed . | . . . . . Part Schematics Acquired . | . . . . . Parts Damaged . | . . . . . Bothacking | -11 -10 -9 -9 -8 ------------ Run | Yrd Mat Mat Min Mat Used RIF Installer . | . . . . . Robots Hacked . | . . . . . Non-combat . | . . . . . Combat . | . . . . . Robot Hacks Applied . | . . . . . Relay Couplers Released . | . . . . . Fabnet Peak Effective % . | . . . . . Robots Rewired . | . . . . . Allies Hacked . | . . . . . Hacks Repelled . | . . . . . Allies | -11 -10 -9 -9 -8 -------- Run | Yrd Mat Mat Min Mat Total Allies . | . . . . . Largest Group . | . . . . . Highest-Rated Group . | . . . . . Highest-Rated Ally . | . . . . . Total Orders . | . . . . . Ally Attacks . | . . . . . Total Damage . | . . . . . Kills . | . . . . . Allies Corrupted . | . . . . . Allies Melted . | . . . . . Intel | -11 -10 -9 -9 -8 ------- Run | Yrd Mat Mat Min Mat Robot Analysis Total . | . . . . . Derelict Logs Recovered 2 | . . . 2 . Drone Launches . | . . . . . Drone Recoveries . | . . . . . Exploration | -11 -10 -9 -9 -8 ------------- Run | Yrd Mat Mat Min Mat Turns Passed 1524 | . 260 474 239 551 Spaces Moved 1121 | 1 183 347 223 367 Core 3 | . . . . 3 Treads . | . . . . . Legs 298 | 1 183 114 . . Wheels 820 | . . 233 223 364 Hover . | . . . . . Flight . | . . . . . Fastest Speed 80 | 120 120 80 80 80 Average Speed 93 | 120 120 97 80 83 Slowest Speed 200 | 120 120 120 80 200 Overloaded Moves . | . . . . . Propulsion Burnouts . | . . . . . Robots Hopped . | . . . . . Cave-ins Triggered . | . . . . . Exploration Rate (%) 35 | 2 43 26 69 36 Regions Visited 4 Branch Regions 1 Pre-discovered Areas . | . . . . . Known Exits Taken 1 | . . 1 . . Unknown Exits Taken 3 | 1 1 . 1 . Scrap Searched 1 | . . . 1 . Spaces Dug . | . . . . . Terrain Destroyed 69 | . . . . 69 Melee . | . . . . . Projectile . | . . . . . AOE 69 | . . . . 69 Terrain Rammed . | . . . . . Walls Destroyed . | . . . . . Machines Disabled . | . . . . . Actions | -11 -10 -9 -9 -8 --------- Run | Yrd Mat Mat Min Mat Total 1387 | . 202 423 256 506 Wait 55 | . 6 9 3 37 Move 1117 | . 182 346 222 367 Hop . | . . . . . Pick Up 26 | . 1 10 5 10 Fast Attach 12 | . 1 3 1 7 Attach 3 | . . . . 3 Detach 3 | . . 1 . 2 Swap 21 | . 2 8 2 9 Drop 34 | . . 13 7 14 Fire 105 | . 10 25 15 55 Melee 6 | . . 6 . . Ram . | . . . . . Kick 2 | . . 2 . . Crush . | . . . . . Escape Stasis . | . . . . . Rewire . | . . . . . Trap 3 | . . . 1 2 Miscellaneous . | . . . . . Route ------- -11/Scrapyard -10/Materials (discovered 2 exits: *Mat / [*Min]) -9/Materials (discovered 2 exits: *Min x2) -9/Mines -8/Materials (discovered 1 exit: Fac) History --------- Turn | Location | Event 1 | -11/Scrapyard | Discovered new exit (range 0) 1 | -11/Scrapyard | Entered Materials 124 | -10/Materials | Discovered new exit (range 15) 259 | -10/Materials | Discovered new exit (range 3) 261 | -10/Materials | Entered another Materials area 261 | -9/Materials | Evolved 2 slots: Utility x2 313 | -9/Materials | Build established: Mutant 657 | -9/Materials | Identified exit to Mines 735 | -9/Materials | Entered Mines 769 | -9/Mines | Learned Materials emergency access door positions 778 | -9/Mines | Found a hidden stash of uninstalled traps 908 | -9/Mines | Learned location of 1 exit from Materials 969 | -9/Mines | Discovered new exit (range 8) 974 | -9/Mines | Entered Materials 974 | -8/Materials | Evolved 2 slots: Propulsion x1, Utility x1 975 | -8/Materials | Identified exit to Factory 1514 | -8/Materials | Core integrity fell below 50% 1522 | -8/Materials | Core integrity fell below 20% 1525 | -8/Materials | Destroyed by Y-45 Defender with Heavy Assault Rifle Last Messages --------------- 01507_ Deuterium Engine destroyed. 01510_ Imp. Assault Rifle destroyed. 01510_ K-01 Serf collects debris. 01511_ Acquired Hvy. Rocket Launcher. 01512_ Slug penetrates Wall. 01516_ Destroyed Lgt. Nuclear Core. 01516_ G-47 Trooper destroyed. 01516_ G-50 Soldier destroyed. 01518_ Y-45 Defender destroyed. 01518_ W-25 Informer destroyed. 01518_ ALERT: Construction progress impeded, dispatching reinforcements to local area. 01519_ H-61 Shepherd calls for reinforcements. 01519_ ALERT: Hostile activity reported, dispatching reinforcements to area. 01521_ Penetrated by Slug. 01521_ Dropped Hvy. Rocket Launcher. 01521_ Acquired Hvy. Rocket Launcher. 01522_ Arm. Wheel destroyed. 01522_ Critical hit (Burn: +37). Map ----- +----------------------------------------------------+ | ?????????????????????????????????????????????? | | ?????????????????????????????????????????????? | | ?????????????????????????????????????????????? | | ?????????????? ?????#??????????????????????? | | ?????????????# #??? ##????????????????????? | | ?????????????# #?? ?????????????????????? | | ???########### #?? ?????????????????????? | | ####! # #?? ??????????????????????? | | # # #? ??????????????????????? | | # ! ] # ## #??????????????????????? | | # # ## ######?????????????????? | | # " """ # ## ##????????????????? | | # T """ # # ###??????????????? | | # " """ # # """" #???????????? | | ?# # # "" #???????????? | | ?#####+##### Y """ #???????????? | | +##### ### #???????????? | | =% " #???????????? | | T = ????????????? | | =t % ??????????????? | | " ### / ##### ] ! ????????????????? | | " #?#######???# % % #?????????????????? | | " #???????????# % ]]###????????????????? | | "???????????# %# #????????????????? | | " Y"??????????# !u #?????????????????? | | " ""#???# ! !@##?????????????????? | | " ##????# = #?????????????????? | | ?????? [ ==##?????????????????? | | #?????? = ###??????????????????? | | #??????? """ %%H #?????????????????????? | | +###?????????"""" ! ??????????????????????? | | ??????????????""" ??????????????????????? | | ???????????????"" ??????????????????????? | | ???????????????" # #??????????????????????? | | ???????????????#### #??????????????????????? | | ?????????????????? ??????????????????????? | | ?????????????????# ???????????????????????? | | ?????????????????# ??????